bitfinex-derivatives/quotes_BTCF0:USTF0_20241029
["timestamp","ask_amount","ask_price","bid_price","bid_amount"]
[1730211805009,0.369904,71566.0,71560.0,0.20183193]
[1730211805427,0.19,71567.0,71565.0,0.20183193]
[1730211805916,0.4192,71566.0,71565.0,0.20183193]
[1730211806217,0.069905,71565.0,71554.0,0.20183193]
[1730211806419,0.71924,71565.0,71560.0,0.001]
[1730211806613,0.71924,71564.0,71560.0,0.001]
[1730211806815,0.069908,71562.0,71560.0,0.001]
[1730211807015,0.7192,71567.0,71560.0,0.001]
[1730211807220,0.3608,71568.0,71566.0,0.20183193]
[1730211807715,0.4192,71567.0,71566.0,0.20183193]
[1730211807921,0.4192,71567.0,71560.0,0.001]
[1730211807922,0.7192,71567.0,71561.0,0.20183193]
[1730211808221,0.069905,71565.0,71561.0,0.20183193]
[1730211808418,0.069907,71563.0,71561.0,0.20183193]
[1730211808726,0.7192,71565.0,71561.0,0.20183193]
[1730211809020,0.069912,71557.0,71553.0,0.3608]
[1730211809210,0.069908,71561.0,71553.0,0.3608]
[1730211809415,0.069908,71561.0,71552.0,0.069917]
[1730211809416,0.789148,71561.0,71550.0,0.20183193]
[1730211809607,0.3,71560.0,71554.0,0.069915]
[1730211809809,0.19,71555.0,71554.0,0.069915]
[1730211810019,0.19,71555.0,71549.0,0.3608]
[1730211810020,0.069916,71554.0,71549.0,0.43072]
[1730211810221,0.41928,71554.0,71549.0,0.63255193]
[1730211810421,0.19,71555.0,71549.0,0.63255193]
[1730211810422,0.489197,71553.0,71549.0,0.63255193]
[1730211810628,0.069917,71553.0,71549.0,0.63255193]
[1730211810822,0.41928,71552.0,71549.0,0.63255193]
[1730211811121,0.41928,71552.0,71550.0,0.069919]
[1730211811317,0.19,71555.0,71554.0,0.069915]
[1730211811521,0.19,71555.0,71554.0,0.27174693]
[1730211811719,0.3608,71578.0,71575.0,0.069895]
[1730211812017,0.1397,71590.0,71576.0,0.430694]
[1730211812226,0.069885,71585.0,71576.0,0.430694]
[1730211812415,0.20183193,71589.0,71576.0,0.430694]
[1730211812818,0.12209706,71577.0,71576.0,0.430694]
[1730211813617,0.12209706,71577.0,71576.0,0.431694]
[1730211814226,0.12209706,71577.0,71576.0,0.432694]
[1730211815315,0.00209706,71577.0,71576.0,0.432694]
[1730211816318,0.069871,71600.0,71596.0,0.069874]
[1730211816522,0.12,71599.0,71598.0,0.27170393]
[1730211818219,0.0020976,71602.0,71601.0,0.069869]
[1730211818413,0.0020976,71602.0,71601.0,0.430669]
[1730211819916,0.0020976,71602.0,71601.0,0.432669]
[1730211820341,0.07194302,71623.0,71601.0,0.3628]
[1730211820623,0.189849,71622.0,71621.0,0.06985]
[1730211820818,0.12,71622.0,71621.0,0.06985]
[1730211821125,0.00209502,71623.0,71622.0,0.069849]
[1730211822123,0.3608,71646.0,71622.0,0.069849]
[1730211822124,0.12,71645.0,71622.0,0.069849]
[1730211822316,0.069835,71637.0,71636.0,0.069835]
[1730211822722,0.069827,71645.0,71635.0,0.20183193]
[1730211823031,0.070539,71653.0,71644.0,0.20183193]
[1730211823330,0.070539,71653.0,71641.0,0.3608]
[1730211823331,0.069815,71657.0,71651.0,0.27165293]
[1730211823622,0.3608,71656.0,71651.0,0.27165293]
[1730211823825,0.069827,71645.0,71641.0,0.3608]
[1730211824021,0.069829,71642.0,71641.0,0.3608]
[1730211824227,0.069832,71640.0,71639.0,0.069831]
[1730211824431,0.41876,71644.0,71643.0,0.069828]
[1730211824432,0.069828,71644.0,71643.0,0.069828]
[1730211824617,0.00072,71644.0,71641.0,0.3608]
[1730211824925,0.3608,71649.0,71641.0,0.3608]
[1730211824926,0.3616,71649.0,71641.0,0.3608]
[1730211825124,1.0289455,71648.0,71642.0,0.069829]
[1730211825317,1.0289455,71648.0,71636.0,0.002]
[1730211825318,0.6102255,71648.0,71639.0,0.069832]
[1730211825514,0.069832,71640.0,71639.0,0.069832]
[1730211825923,0.488592,71640.0,71639.0,0.069832]
[1730211826120,0.83876,71640.0,71624.0,0.00209441]
[1730211826321,0.069839,71632.0,71631.0,0.069838]
[1730211826822,0.3102255,71636.0,71635.0,0.069836]
[1730211827019,0.3102255,71636.0,71624.0,0.00209441]
[1730211827020,0.3608,71639.0,71626.0,0.3102255]
[1730211827327,0.3608,71639.0,71638.0,0.069833]
[1730211827523,0.069823,71649.0,71648.0,0.069824]
[1730211827928,0.608543,71649.0,71648.0,0.069824]
[1730211829522,0.608543,71649.0,71641.0,0.06983]
[1730211829523,0.069831,71642.0,71641.0,0.06983]
[1730211830022,0.488591,71642.0,71641.0,0.06983]
[1730211830730,0.069832,71640.0,71639.0,0.069832]
[1730211831228,0.488592,71640.0,71639.0,0.069832]
[1730211831529,0.12,71640.0,71639.0,0.069832]
[1730211831737,0.3608,71659.0,71656.0,0.069816]
[1730211832035,0.49058953,71657.0,71656.0,0.069816]
[1730211832424,0.00209453,71657.0,71656.0,0.430616]
[1730211832827,0.49058953,71657.0,71656.0,0.069816]
[1730211833025,0.06982,71653.0,71652.0,0.069818]
[1730211833327,0.07262953,71657.0,71656.0,0.069816]
[1730211833527,0.00209453,71657.0,71656.0,0.431616]
[1730211833729,0.00209453,71657.0,71656.0,0.432616]
[1730211834122,0.00209453,71657.0,71656.0,0.431616]
[1730211834123,0.07190953,71657.0,71656.0,0.431616]
[1730211834330,0.49058953,71657.0,71656.0,0.431616]
[1730211834925,0.07190953,71657.0,71656.0,0.069816]
[1730211835232,0.00209453,71657.0,71656.0,0.069816]
[1730211835838,0.59359453,71657.0,71656.0,0.069816]
[1730211836127,0.59359453,71657.0,71656.0,0.071816]
[1730211836333,0.66340953,71657.0,71656.0,0.071816]
[1730211836528,1.08208953,71657.0,71656.0,0.002]
[1730211837735,1.08208953,71657.0,71656.0,0.001]
[1730211837946,1.38208953,71657.0,71656.0,0.001]
[1730211838124,0.069823,71649.0,71642.0,0.069829]
[1730211838324,0.069823,71649.0,71639.0,0.3608]
[1730211838529,0.788543,71649.0,71639.0,0.3608]
[1730211838724,0.488543,71649.0,71644.0,0.069827]
[1730211839133,0.488543,71649.0,71639.0,0.3608]
[1730211839334,0.71872,71649.0,71631.0,0.3608]
[1730211839635,0.069839,71632.0,71631.0,0.430639]
[1730211840135,0.06983,71641.0,71636.0,0.069835]
[1730211840327,0.069834,71638.0,71637.0,0.069834]
[1730211840533,0.069838,71634.0,71633.0,0.069838]
[1730211840735,0.069839,71632.0,71631.0,0.3618]
[1730211841336,0.069836,71636.0,71635.0,0.069835]
[1730211841536,0.069822,71650.0,71631.0,0.3618]
[1730211841537,0.3102255,71649.0,71631.0,0.3618]
[1730211841840,0.069828,71644.0,71643.0,0.069827]
[1730211842233,0.069831,71641.0,71640.0,0.069831]
[1730211842741,0.06983,71643.0,71642.0,0.069829]
[1730211843038,0.069832,71640.0,71639.0,0.069832]
[1730211843235,0.069832,71639.0,71638.0,0.3608]
[1730211845435,0.002,71641.0,71640.0,0.069831]
[1730211845641,0.001,71639.0,71638.0,0.6731055]
[1730211845842,0.001,71639.0,71638.0,0.7418585]
[1730211846029,0.069825,71647.0,71638.0,0.6730255]
[1730211846227,0.069825,71647.0,71646.0,0.430625]
[1730211847041,0.66340953,71657.0,71646.0,0.430625]
[1730211847234,0.069821,71651.0,71650.0,0.06982]
[1730211847831,0.59359453,71657.0,71646.0,0.3618]
[1730211848032,0.069824,71647.0,71646.0,0.431625]
[1730211849036,0.069824,71647.0,71646.0,0.432625]
[1730211849338,0.069813,71652.0,71651.0,0.069812]
[1730211849938,0.20118269,71655.0,71646.0,0.7236]
[1730211850242,0.20118269,71655.0,71646.0,0.432618]
[1730211850243,0.069817,71647.0,71646.0,0.432618]
[1730211850439,0.069817,71647.0,71646.0,0.7236]
[1730211850636,0.488537,71647.0,71646.0,0.3618]
[1730211850836,0.069827,71637.0,71628.0,0.04134393]
[1730211851033,0.20118269,71629.0,71622.0,0.04134393]
[1730211851251,0.069842,71622.0,71621.0,0.00209453]
[1730211851537,0.069845,71619.0,71618.0,0.3608]
[1730211851736,0.069845,71619.0,71618.0,0.430646]
[1730211852131,0.069845,71619.0,71618.0,0.069846]
[1730211852736,0.430633,71631.0,71617.0,0.56198269]
[1730211852737,0.069842,71623.0,71617.0,0.56198269]
[1730211852931,0.069838,71627.0,71622.0,0.20118269]
[1730211853136,0.069835,71630.0,71628.0,0.069836]
[1730211853337,0.069835,71629.0,71628.0,0.069836]
[1730211853732,0.00209488,71634.0,71633.0,0.069831]
[1730211853937,0.07192488,71634.0,71633.0,0.069831]
[1730211854543,0.00209488,71634.0,71633.0,0.069831]
[1730211854933,0.20118269,71654.0,71645.0,0.069819]
[1730211855138,0.069821,71644.0,71643.0,0.069821]
[1730211855348,0.069821,71644.0,71640.0,0.3608]
[1730211855349,0.069817,71648.0,71647.0,0.069816]
[1730211855646,0.20118269,71654.0,71640.0,0.3608]
[1730211855939,0.20118269,71654.0,71653.0,0.069812]
[1730211855940,0.069812,71654.0,71653.0,0.069812]
[1730211856141,0.430601,71665.0,71653.0,0.069812]
[1730211856142,0.3608,71665.0,71656.0,0.069809]
[1730211856643,0.069807,71658.0,71656.0,0.069809]
[1730211856943,0.3608,71665.0,71656.0,0.069809]
[1730211857142,0.66340253,71657.0,71656.0,0.069809]
[1730211857748,0.59359453,71657.0,71656.0,0.069809]
[1730211858244,0.59359453,71657.0,71656.0,0.27099169]
[1730211858750,0.60559453,71657.0,71656.0,0.069809]
[1730211859048,0.60559453,71657.0,71656.0,0.070809]
[1730211859348,0.19829453,71657.0,71656.0,0.070809]
[1730211859542,0.19829453,71657.0,71656.0,0.069809]
[1730211859738,0.19829453,71657.0,71656.0,0.070809]
[1730211860345,0.069796,71669.0,71656.0,0.41968]
[1730211860543,0.069796,71669.0,71668.0,0.430597]
[1730211861053,0.00209374,71672.0,71669.0,0.069796]
[1730211861250,0.00209374,71672.0,71671.0,0.069794]
[1730211862056,0.069795,71670.0,71669.0,0.1319]
[1730211862353,0.01509374,71672.0,71671.0,0.070794]
[1730211862761,0.01509374,71672.0,71671.0,0.071794]
[1730211862959,0.08488674,71672.0,71671.0,0.071794]
[1730211863451,0.08488674,71672.0,71671.0,0.070794]
[1730211863750,0.08488674,71672.0,71671.0,0.001]
[1730211863751,0.082793,71672.0,71671.0,0.001]
[1730211863949,0.75369865,71672.0,71671.0,0.001]
[1730211864155,0.069801,71664.0,71663.0,0.3608]
[1730211864446,0.001,71670.0,71663.0,0.3608]
[1730211864752,0.0698,71667.0,71666.0,0.069797]
[1730211865055,0.069789,71677.0,71676.0,0.069789]
[1730211865245,0.069789,71677.0,71676.0,0.430589]
[1730211866348,0.069789,71677.0,71676.0,0.3608]
[1730211866751,0.069789,71677.0,71676.0,0.431589]
[1730211867040,0.069789,71677.0,71676.0,0.3618]
[1730211867346,0.488349,71677.0,71676.0,0.001]
[1730211868045,0.50698226,71677.0,71676.0,0.001]
[1730211868239,0.31863326,71677.0,71658.0,0.3608]
[1730211868451,0.069806,71659.0,71658.0,0.3608]
[1730211869741,0.069806,71659.0,71658.0,0.3698]
[1730211871153,0.37991165,71659.0,71658.0,0.3698]
[1730211872754,0.37991165,71659.0,71658.0,0.3808]
[1730211872953,0.069806,71659.0,71658.0,0.04995711]
[1730211873151,0.069803,71663.0,71658.0,0.04995711]
[1730211873353,0.069806,71659.0,71658.0,0.04995711]
[1730211873553,0.069806,71659.0,71658.0,0.11976411]
[1730211873953,0.069806,71659.0,71658.0,0.04995711]
[1730211874355,0.069806,71659.0,71658.0,0.04595711]
[1730211874953,0.069806,71659.0,71658.0,0.11576411]
[1730211875155,0.069806,71659.0,71658.0,0.11976411]
[1730211875356,0.069806,71659.0,71658.0,0.04095711]
[1730211875552,0.069806,71659.0,71658.0,0.04595711]
[1730211876059,0.069806,71659.0,71658.0,0.04095711]
[1730211876260,0.069806,71659.0,71658.0,0.04995711]
[1730211876462,0.069806,71659.0,71658.0,0.11976411]
[1730211879874,0.069806,71659.0,71658.0,0.04995711]
[1730211880378,0.069806,71659.0,71658.0,0.11976411]
[1730211882867,0.069806,71659.0,71658.0,0.04995711]
[1730211883974,0.01792892,71661.0,71658.0,0.04995711]
[1730211884174,0.069788,71678.0,71660.0,0.069805]
[1730211884476,0.06979,71675.0,71674.0,0.20115007]
[1730211884671,0.06979,71675.0,71674.0,0.27094107]
[1730211884870,0.06979,71675.0,71674.0,0.30089818]
[1730211885076,0.06979,71675.0,71674.0,0.09974811]
[1730211886172,0.001,71675.0,71674.0,0.09974811]
[1730211886380,0.07079,71675.0,71674.0,0.02995711]
[1730211887683,0.07279,71675.0,71674.0,0.02995711]
[1730211888579,0.07279,71675.0,71674.0,0.09974811]
[1730211890973,0.07279,71675.0,71674.0,0.02995711]
[1730211891169,0.22312873,71682.0,71674.0,0.02995711]
[1730211891384,0.06979,71675.0,71674.0,0.02995711]
[1730211892179,0.06979,71675.0,71674.0,0.03095711]
[1730211892770,0.06979,71675.0,71674.0,0.02995711]
[1730211892975,0.07079,71675.0,71674.0,0.09974811]
[1730211893780,0.48935,71675.0,71674.0,0.02995711]
[1730211893978,0.07079,71675.0,71674.0,0.02995711]
[1730211895090,0.07079,71675.0,71674.0,0.09974811]
[1730211897983,0.001,71675.0,71674.0,0.09974811]
[1730211898388,0.07079,71675.0,71674.0,0.09974811]
[1730211900502,0.07079,71675.0,71674.0,0.02995711]
[1730211901493,0.07079,71675.0,71674.0,0.09974811]
[1730211901696,0.00209327,71690.0,71689.0,0.069777]
[1730211901903,0.00209327,71690.0,71689.0,0.66168418]
[1730211903092,0.00209327,71690.0,71689.0,0.59556987]
[1730211903393,0.07186927,71690.0,71689.0,0.39175711]
[1730211903606,0.07186927,71690.0,71689.0,0.39275711]
[1730211904000,0.07186927,71690.0,71689.0,0.46253411]
[1730211904197,0.07186927,71690.0,71689.0,0.39275711]
[1730211904900,0.00209327,71690.0,71689.0,0.59656987]
[1730211905107,0.069763,71703.0,71691.0,0.069774]
[1730211905300,0.06976,71706.0,71704.0,0.069762]
[1730211905493,0.15181978,71714.0,71705.0,0.069761]
[1730211905701,0.069763,71704.0,71702.0,0.431683]
[1730211905896,0.069763,71704.0,71703.0,0.069763]
[1730211906105,0.069763,71704.0,71703.0,0.02995711]
[1730211907893,0.01789126,71714.0,71703.0,0.02995711]
[1730211908099,0.069748,71719.0,71718.0,0.069747]
[1730211908395,0.00209242,71730.0,71718.0,0.20104389]
[1730211908706,0.069746,71720.0,71719.0,0.3608]
[1730211909208,0.069746,71720.0,71719.0,0.39075711]
[1730211909800,0.02001276,71730.0,71719.0,0.39075711]
[1730211910013,0.02001276,71730.0,71729.0,0.3608]
[1730211910014,0.08974976,71730.0,71729.0,0.3608]
[1730211910197,0.08974976,71730.0,71729.0,0.39075711]
[1730211910506,0.07182942,71730.0,71729.0,0.39075711]
[1730211911301,0.00209242,71730.0,71729.0,0.46249511]
[1730211912014,0.27074789,71764.0,71729.0,0.88073511]
[1730211912197,0.06972,71747.0,71744.0,0.069723]
[1730211912507,0.069716,71751.0,71750.0,0.20104389]
[1730211912712,0.069716,71751.0,71750.0,0.56184389]
[1730211912913,0.069716,71751.0,71750.0,0.3608]
[1730211913212,0.069716,71751.0,71750.0,0.39075711]
[1730211913602,0.069716,71751.0,71750.0,0.591801]
[1730211914106,0.06971,71758.0,71750.0,1.009921]
[1730211914308,0.3608,71766.0,71757.0,0.20104389]
[1730211914309,0.069702,71766.0,71757.0,0.20104389]
[1730211914515,0.069699,71769.0,71766.0,0.069702]
[1730211914706,0.0697,71768.0,71767.0,0.3608]
[1730211915310,0.00209094,71770.0,71769.0,0.069699]
[1730211915504,0.00209094,71770.0,71769.0,0.27074289]
[1730211915709,0.06971,71757.0,71756.0,0.3608]
[1730211915911,0.20104389,71762.0,71756.0,0.3608]
[1730211916215,0.00209094,71770.0,71756.0,0.3608]
[1730211916216,0.00209094,71770.0,71761.0,0.20104389]
[1730211916409,0.07178894,71770.0,71769.0,0.3608]
[1730211917019,0.00209094,71770.0,71769.0,0.430499]
[1730211917406,0.00209094,71770.0,71769.0,0.3608]
[1730211917611,0.07178894,71770.0,71769.0,0.3628]
[1730211918512,0.00209094,71770.0,71769.0,0.3618]
[1730211918715,0.00209094,71770.0,71769.0,0.3608]
[1730211918914,0.00209094,71770.0,71769.0,0.3618]
[1730211920310,0.07178894,71770.0,71769.0,0.3618]
[1730211922115,0.00209094,71770.0,71769.0,0.431499]
[1730211922315,0.07178894,71770.0,71769.0,0.3618]
[1730211922711,0.00209094,71770.0,71769.0,0.3618]
[1730211922912,0.00209094,71770.0,71769.0,0.31992445]
[1730211924020,0.27073889,71773.0,71771.0,0.069696]
[1730211924315,0.00209048,71785.0,71770.0,0.20104389]
[1730211924517,0.00209048,71785.0,71784.0,0.069684]
[1730211924721,0.20104389,71801.0,71784.0,0.215123]
[1730211924722,0.069671,71798.0,71784.0,0.215123]
[1730211924911,0.20104389,71801.0,71797.0,0.3608]
[1730211925213,0.20104389,71806.0,71797.0,0.3608]
[1730211925414,0.069662,71808.0,71807.0,0.069662]
[1730211925610,0.069663,71806.0,71805.0,0.3608]
[1730211925809,0.20104389,71806.0,71805.0,0.3608]
[1730211926221,0.20104389,71811.0,71807.0,0.069661]
[1730211926409,0.20104389,71811.0,71808.0,0.069661]
[1730211926410,0.069661,71809.0,71808.0,0.069661]
[1730211926720,0.069663,71806.0,71805.0,0.3608]
[1730211927017,0.27070689,71806.0,71805.0,0.3608]
[1730211927907,0.27070689,71806.0,71805.0,0.3618]
[1730211928508,0.27070689,71806.0,71805.0,0.001]
[1730211928721,0.069671,71799.0,71783.0,0.3608]
[1730211929013,0.91884389,71806.0,71783.0,0.3608]
[1730211929014,0.20104389,71784.0,71783.0,0.3608]
[1730211929208,0.27072789,71784.0,71783.0,0.3608]
[1730211929613,0.069693,71775.0,71774.0,0.3608]
[1730211930016,0.0697,71768.0,71767.0,0.3608]
[1730211930210,0.27074389,71768.0,71767.0,0.3608]
[1730211930818,0.069705,71763.0,71762.0,0.07006]
[1730211931209,0.27074889,71763.0,71762.0,0.07006]
[1730211931617,0.069709,71758.0,71757.0,0.3608]
[1730211931825,0.069707,71762.0,71761.0,0.069706]
[1730211932011,0.069709,71758.0,71757.0,0.3608]
[1730211932529,0.069723,71744.0,71743.0,0.430524]
[1730211932717,0.069723,71744.0,71743.0,0.3608]
[1730211933417,0.3608,71746.0,71736.0,0.3608]
[1730211933612,0.069724,71744.0,71741.0,0.069725]
[1730211934223,0.069724,71743.0,71741.0,0.069725]
[1730211934522,0.069725,71742.0,71741.0,0.069725]
[1730211934924,0.069729,71739.0,71736.0,0.430531]
[1730211935115,0.3608,71746.0,71739.0,0.069728]
[1730211935316,0.069727,71740.0,71739.0,0.069728]
[1730211937218,0.069727,71740.0,71736.0,0.3608]
[1730211937219,0.06973,71737.0,71736.0,0.3608]
[1730211937428,0.20104389,71740.0,71739.0,0.003]
[1730211937726,0.069727,71740.0,71739.0,0.004]
[1730211939020,0.27077089,71740.0,71739.0,0.004]
[1730211939413,0.069727,71740.0,71739.0,0.001]
[1730211940314,0.069727,71740.0,71739.0,0.004]
[1730211941027,0.069721,71746.0,71745.0,0.069721]
[1730211941230,0.069721,71746.0,71745.0,0.430521]
[1730211941420,0.069727,71740.0,71739.0,0.004]
[1730211941620,0.27077089,71740.0,71739.0,0.004]
[1730211942029,0.68893089,71740.0,71739.0,0.003]
[1730211943120,1.28000389,71740.0,71718.0,0.3608]
[1730211943335,0.069747,71720.0,71718.0,0.3608]
[1730211943524,0.069747,71720.0,71719.0,0.069747]
[1730211944525,0.20104389,71737.0,71719.0,0.20104389]
[1730211944831,0.069736,71731.0,71730.0,0.069736]
[1730211945230,0.069734,71734.0,71733.0,0.069731]
[1730211946524,0.069737,71730.0,71729.0,0.069737]
[1730211946723,0.069739,71728.0,71727.0,0.43054]
[1730211947533,0.069737,71730.0,71729.0,0.069734]
[1730211947727,0.071734,71734.0,71733.0,0.069734]
[1730211948319,0.002,71734.0,71733.0,0.069734]
[1730211948627,0.002,71734.0,71733.0,0.430534]
[1730211948822,0.069722,71745.0,71733.0,0.3608]
[1730211949025,0.1434,71759.0,71744.0,0.3608]
[1730211949026,0.20104389,71755.0,71744.0,0.3608]
[1730211949418,0.069718,71750.0,71749.0,0.069717]
[1730211950028,0.20104389,71755.0,71745.0,0.069722]
[1730211950029,0.069722,71746.0,71745.0,0.069722]
[1730211951027,0.069717,71750.0,71749.0,0.069717]
[1730211951824,0.00509156,71752.0,71745.0,0.001]
[1730211951825,0.07480656,71752.0,71751.0,0.069716]
[1730211952733,0.07180656,71752.0,71751.0,0.069716]
[1730211953234,0.00209156,71752.0,71747.0,0.3608]
[1730211953435,0.069719,71748.0,71747.0,0.3608]
[1730211953639,0.069721,71746.0,71745.0,0.001]
[1730211953826,0.27076489,71746.0,71745.0,0.001]
[1730211954029,0.27076489,71746.0,71737.0,0.3608]
[1730211954030,0.069729,71738.0,71737.0,0.3608]
[1730211954236,0.27077289,71738.0,71737.0,0.3608]
[1730211954431,0.069729,71738.0,71737.0,0.3608]
[1730211955329,0.069729,71738.0,71737.0,0.3618]
[1730211955330,0.074729,71738.0,71737.0,0.3618]
[1730211956238,0.074729,71738.0,71737.0,0.43153]
[1730211956533,0.077729,71738.0,71737.0,0.43153]
[1730211957435,0.008,71738.0,71737.0,0.43153]
[1730211958029,0.077729,71738.0,71737.0,0.43153]
[1730211958636,0.077729,71738.0,71737.0,0.3618]
[1730211958831,0.077729,71738.0,71737.0,0.43153]
[1730211959829,0.077729,71738.0,71737.0,0.3618]
[1730211960236,0.008,71738.0,71737.0,0.43153]
[1730211960837,0.07180756,71752.0,71751.0,0.069716]
[1730211961040,0.07180756,71752.0,71751.0,0.430516]
[1730211961233,0.00209156,71752.0,71751.0,0.430516]
[1730211961940,0.07180656,71752.0,71751.0,0.430516]
[1730211962627,0.07180656,71752.0,71751.0,0.791316]
[1730211962839,0.069699,71769.0,71751.0,0.791316]
[1730211962840,0.07178066,71778.0,71751.0,1.48192389]
[1730211963039,0.07178166,71778.0,71777.0,0.430491]
[1730211963246,0.00209066,71778.0,71777.0,0.430491]
[1730211964143,0.00209066,71778.0,71777.0,0.570651]
[1730211964636,0.56184389,71810.0,71777.0,0.91992]
[1730211964839,0.20104389,71787.0,71786.0,0.3608]
[1730211965043,0.20104389,71787.0,71777.0,0.001]
[1730211965044,0.06969,71778.0,71777.0,0.001]
[1730211965733,0.069681,71788.0,71778.0,0.06969]
[1730211965934,0.20104389,71794.0,71785.0,0.3608]
[1730211966245,0.20104389,71815.0,71801.0,0.069668]
[1730211966538,0.069656,71814.0,71801.0,0.77167189]
[1730211966731,0.22296326,71815.0,71801.0,0.77167189]
[1730211966934,0.069659,71810.0,71801.0,0.570588]
[1730211967340,0.069662,71808.0,71801.0,0.570588]
[1730211967541,0.069666,71804.0,71801.0,0.570588]
[1730211967739,0.07175708,71802.0,71801.0,0.3608]
[1730211967939,0.07175708,71802.0,71801.0,0.3618]
[1730211968142,0.07275708,71802.0,71801.0,0.3618]
[1730211968340,0.49055708,71802.0,71801.0,0.3618]
[1730211969237,0.49055708,71802.0,71801.0,0.3628]
[1730211969544,0.49055708,71802.0,71784.0,0.43257254]
[1730211969545,1.15135708,71802.0,71784.0,0.43257254]
[1730211969745,0.069683,71785.0,71784.0,0.36288954]
[1730211970244,0.069683,71785.0,71784.0,0.3608]
[1730211970651,0.069683,71785.0,71784.0,0.3618]
[1730211971350,0.070683,71785.0,71784.0,0.3618]
[1730211972050,0.070683,71785.0,71784.0,0.431484]
[1730211972244,0.070683,71785.0,71784.0,0.3618]
[1730211972447,0.488603,71785.0,71784.0,0.001]
[1730211972747,0.069689,71779.0,71778.0,0.3608]
[1730211972938,0.069689,71779.0,71778.0,0.43049]
[1730211973246,0.069689,71779.0,71778.0,0.3608]
[1730211974043,0.069689,71779.0,71778.0,0.3688]
[1730211975251,0.069689,71779.0,71778.0,0.43849]
[1730211975765,0.3608,71789.0,71783.0,0.069684]
[1730211975766,0.069684,71784.0,71783.0,0.069684]
[1730211976052,0.069689,71779.0,71778.0,0.3688]
[1730211976252,0.27073289,71779.0,71778.0,0.3688]
[1730211976455,0.27073289,71779.0,71778.0,0.008]
[1730211976639,0.68869289,71779.0,71778.0,0.008]
[1730211976837,0.069707,71761.0,71760.0,0.36289024]
[1730211977042,0.27075089,71761.0,71760.0,0.3608]
[1730211977643,0.069712,71755.0,71754.0,0.3608]
[1730211977851,0.27075589,71755.0,71754.0,0.3608]
[1730211978842,0.069712,71755.0,71754.0,0.3608]
[1730211979041,0.069712,71755.0,71754.0,0.430513]
[1730211979438,0.27075589,71755.0,71754.0,0.430513]
[1730211979657,0.27075589,71755.0,71754.0,0.3608]
[1730211979658,0.27275589,71755.0,71754.0,0.3608]
[1730211980054,0.69483589,71755.0,71754.0,0.3608]
[1730211980352,0.06972,71747.0,71746.0,0.3608]
[1730211980657,0.06972,71747.0,71746.0,0.430521]
[1730211981553,0.20104389,71752.0,71746.0,0.430521]
[1730211981554,0.20104389,71752.0,71746.0,0.3608]
[1730211981753,0.069716,71751.0,71750.0,0.069716]
[1730211982848,0.069716,71751.0,71746.0,0.3698]
[1730211983054,0.27076389,71747.0,71746.0,0.3608]
[1730211983445,0.069726,71741.0,71740.0,0.3608]
[1730211983662,0.27076989,71741.0,71740.0,0.3608]
[1730211985865,0.27276989,71741.0,71740.0,0.3608]
[1730211986457,0.27476989,71741.0,71740.0,0.3618]
[1730211986956,0.079726,71741.0,71740.0,0.431527]
[1730211990265,0.079726,71741.0,71740.0,0.3618]
[1730211990566,0.079726,71741.0,71740.0,0.431527]
[1730211992955,0.079726,71741.0,71740.0,0.3618]
[1730211993757,0.079726,71741.0,71740.0,0.431527]
[1730211994158,0.079726,71741.0,71740.0,0.3618]
[1730211994658,0.21367577,71741.0,71740.0,0.3618]
[1730211995062,0.079726,71741.0,71740.0,0.431527]
[1730211995253,0.21367577,71741.0,71740.0,0.431527]
[1730211995453,0.21367577,71741.0,71740.0,0.3618]
[1730211996962,0.079726,71741.0,71740.0,0.3618]
[1730211997158,0.21367577,71741.0,71740.0,0.3618]
[1730211998565,0.069702,71766.0,71740.0,0.50196]
[1730211998771,0.069708,71760.0,71757.0,0.92525977]
[1730211999065,0.13394977,71766.0,71765.0,0.069703]
[1730211999066,0.069703,71766.0,71765.0,0.069703]
[1730211999260,0.069703,71766.0,71765.0,0.430503]
[1730212001270,0.070703,71766.0,71765.0,0.431503]
[1730212001757,0.070703,71766.0,71765.0,0.432503]
[1730212002159,0.27155231,71766.0,71765.0,0.3628]
[1730212003660,0.27155231,71766.0,71765.0,0.002]
[1730212004071,0.68959231,71766.0,71765.0,0.002]
[1730212004265,0.68959231,71766.0,71757.0,0.3608]
[1730212004266,0.61888931,71766.0,71757.0,0.3608]
[1730212004461,0.27055831,71758.0,71757.0,0.3608]
[1730212005086,0.069709,71758.0,71757.0,0.43051]
[1730212005865,0.070709,71758.0,71757.0,0.43051]
[1730212006864,0.27155831,71758.0,71757.0,0.43051]
[1730212007470,0.27155831,71758.0,71757.0,0.3608]
[1730212008068,0.27155831,71758.0,71757.0,0.43051]
[1730212008274,0.27155831,71758.0,71757.0,0.3608]
[1730212009970,0.070709,71758.0,71757.0,0.3608]
[1730212010870,0.001,71758.0,71757.0,0.43051]
[1730212011069,0.070709,71758.0,71757.0,0.43051]
[1730212011572,0.41908,71758.0,71749.0,0.00209054]
[1730212011770,0.27056631,71750.0,71749.0,0.00209054]
[1730212012170,0.06972,71747.0,71746.0,0.3608]
[1730212012369,0.27056631,71750.0,71743.0,0.00126697]
[1730212012370,0.069723,71744.0,71743.0,0.00126697]
[1730212012580,0.27057231,71744.0,71743.0,0.00126697]
[1730212013271,0.68873231,71744.0,71743.0,0.00126697]
[1730212014471,0.68873231,71744.0,71743.0,0.01126697]
[1730212014665,0.68973231,71744.0,71743.0,0.01226697]
[1730212014971,0.070723,71744.0,71743.0,0.08199097]
[1730212015180,0.070723,71744.0,71743.0,0.00226697]
[1730212015368,0.27157231,71744.0,71743.0,0.00326697]
[1730212015770,0.27057231,71744.0,71743.0,0.00226697]
[1730212015968,0.27157231,71744.0,71743.0,0.00226697]
[1730212016372,0.070723,71744.0,71743.0,0.07199097]
[1730212016575,0.001,71744.0,71743.0,0.07199097]
[1730212017080,0.001,71744.0,71743.0,0.07099097]